{"text_format":"3","workbook":"xlsx","n_sheets":6,"sheets":["TRIMESTRE","CRÉDITOS","PRESUPUESTO","GASTOS MENSUALES NETOS","GASTOS TRIMESTRALES","LIBROS"],"not_rendered":{"defined_names":21},"read":"whole","date_system":"1900"}

{"sheet":"TRIMESTRE","index":0,"n_rows":29,"n_cols":9,"rows_kept":29,"merged":[[2,3,2,4]]}
[null,"MI HORARIO DE CLASES"]
[null,"TRIMESTRE DE OTOÑO"]
[null,null,"HORA DE INICIO","INTERVALO DE TIEMPO",null,"AÑO"]
[null,null,"09:00:00",60,"(en minutos)"]
[null,"HORA ","LUN","MAR","MIÉ","JUE","VIE","SÁB","DOM"]
[null,{"$f":"Hora_de_inicio+TIME(0,(ROW(A1)-1)*Intervalo_de_tiempo,0)","v":"09:00:00"},"Desayuno","Desayuno","Desayuno","Desayuno","Desayuno"]
[null,"10:00:00","Empresariales: Seminario, Edificio B, aula 256"]
[null,"11:00:00",{"$nulls":3},"Física: Laboratorio \nEdificio J, aula 309"]
[null,"12:00:00"]
[null,"13:00:00"]
[null,"14:00:00"]
[null,"15:00:00"]
[null,"16:00:00"]
[null,"17:00:00"]
[null,"18:00:00"]
[null,"19:00:00"]
[null,"20:00:00"]
[null,"21:00:00"]
[null,"22:00:00"]
[null,"23:00:00"]
[null,1]
[null,{"$f":"Hora_de_inicio+TIME(0,(ROW(A17)-1)*Intervalo_de_tiempo,0)","v":1.0416666666666665}]
[null,1.0833333333333335]
[null,1.125]
[null,1.1666666666666665]
[null,1.2083333333333335]
[null,1.25]
[null,1.2916666666666665]
[null,1.3333333333333335]

{"sheet":"CRÉDITOS","index":1,"n_rows":17,"n_cols":8,"rows_kept":17}
[null,"FACULTAD"]
[null,"PLAN DE CRÉDITOS"]
[null,"Nombre del grado",{"$f":"Año","v":"AÑO"}]
[null,"PROGRESO GENERAL",null,"PROGRESO GENERAL"]
[null,{"$f":"AVERAGE(Cursos[CALIFICACIÓN])","v":3.5},{"$f":"IFERROR(TEXT(AVERAGEIF(Cursos[COMPLETADO],\"Sí\",Cursos[CALIFICACIÓN]),\"0,00\"),\"0,00\")&\" Nota media actual\"","v":"004 Nota media actual"},{"$f":"COUNTIF(Cursos[COMPLETADO],\"Sí\")/COUNTA(Cursos[NOMBRE DEL CURSO])","v":0.6666666666666666},{"$f":"TEXT(COUNTIF(Cursos[COMPLETADO],\"Sí\")/COUNTA(Cursos[NOMBRE DEL CURSO]),\"0%\")&\" completado\"","v":"67% completado"}]
[null,"Nota: El siguiente resumen de créditos se genera automáticamente con las entradas en la tabla de cursos universitarios siguiente."]
[null,"REQUISITO","CRÉDITOS TOTALES","ACUMULADO","NECESARIOS"]
[null,"Especialización académica",{"$f":"IF(SUMIF(Cursos[REQUISITO],CRÉDITOS!$B8,Cursos[CRÉDITOS])=0,\"0\",SUMIF(Cursos[REQUISITO],CRÉDITOS!$B8,Cursos[CRÉDITOS]))","v":4},{"$f":"SUMIFS(Cursos[CRÉDITOS],Cursos[REQUISITO],CRÉDITOS!$B8,Cursos[COMPLETADO],\"Sí\")","v":4},{"$f":"SUMIF(Cursos[REQUISITO],CRÉDITOS!$B8,Cursos[CRÉDITOS])-SUMIFS(Cursos[CRÉDITOS],Cursos[REQUISITO],CRÉDITOS!$B8,Cursos[COMPLETADO],\"Sí\")","v":0}]
[null,"Estudios secundarios",{"$f":"IF(SUMIF(Cursos[REQUISITO],CRÉDITOS!$B9,Cursos[CRÉDITOS])=0,\"0\",SUMIF(Cursos[REQUISITO],CRÉDITOS!$B9,Cursos[CRÉDITOS]))","v":3},{"$f":"SUMIFS(Cursos[CRÉDITOS],Cursos[REQUISITO],CRÉDITOS!$B9,Cursos[COMPLETADO],\"Sí\")","v":0},{"$f":"SUMIF(Cursos[REQUISITO],CRÉDITOS!$B9,Cursos[CRÉDITOS])-SUMIFS(Cursos[CRÉDITOS],Cursos[REQUISITO],CRÉDITOS!$B9,Cursos[COMPLETADO],\"Sí\")","v":3}]
[null,"Curso optativo",{"$f":"IF(SUMIF(Cursos[REQUISITO],CRÉDITOS!$B10,Cursos[CRÉDITOS])=0,\"0\",SUMIF(Cursos[REQUISITO],CRÉDITOS!$B10,Cursos[CRÉDITOS]))","v":2},{"$f":"SUMIFS(Cursos[CRÉDITOS],Cursos[REQUISITO],CRÉDITOS!$B10,Cursos[COMPLETADO],\"Sí\")","v":2},{"$f":"SUMIF(Cursos[REQUISITO],CRÉDITOS!$B10,Cursos[CRÉDITOS])-SUMIFS(Cursos[CRÉDITOS],Cursos[REQUISITO],CRÉDITOS!$B10,Cursos[COMPLETADO],\"Sí\")","v":0}]
[null,"Estudio general",{"$f":"IF(SUMIF(Cursos[REQUISITO],CRÉDITOS!$B11,Cursos[CRÉDITOS])=0,\"0\",SUMIF(Cursos[REQUISITO],CRÉDITOS!$B11,Cursos[CRÉDITOS]))","v":"0"},{"$f":"SUMIFS(Cursos[CRÉDITOS],Cursos[REQUISITO],CRÉDITOS!$B11,Cursos[COMPLETADO],\"Sí\")","v":0},{"$f":"SUMIF(Cursos[REQUISITO],CRÉDITOS!$B11,Cursos[CRÉDITOS])-SUMIFS(Cursos[CRÉDITOS],Cursos[REQUISITO],CRÉDITOS!$B11,Cursos[COMPLETADO],\"Sí\")","v":0}]
[null,"Total",{"$f":"SUBTOTAL(109,CRÉDITOS!$C$8:$C$11)","v":9},{"$f":"SUBTOTAL(109,CRÉDITOS!$D$8:$D$11)","v":6},{"$f":"SUBTOTAL(109,CRÉDITOS!$E$8:$E$11)","v":3}]
[null,"Cursos"]
[null,"NOMBRE DEL CURSO","N.º DEL CURSO","REQUISITO","CRÉDITOS","COMPLETADO","CALIFICACIÓN","TRIMESTRE"]
[null,"Curso 1","Número","Especialización académica",4,"Sí",{"v":4,"d":"4.0"},"Trimestre 1"]
[null,"Curso 2","Número","Estudios secundarios",3,"No",null,"Trimestre 1"]
[null,"Curso 3","Número","Curso optativo",2,"Sí",{"v":3,"d":"3.0"},"Trimestre 1"]

{"sheet":"PRESUPUESTO","index":2,"n_rows":15,"n_cols":4,"rows_kept":15}
[null,{"$f":"Facultad","v":"FACULTAD"}]
[null,"SEGUIMIENTO DE PRESUPUESTO"]
[null,"Mi presupuesto",{"$f":"Año","v":"AÑO"}]
[null,"PORCENTAJE DE INGRESOS GASTADOS"]
[null,{"$f":"GASTOS_MENSUALES_NETOS/INGRESOS_MENSUALES_NETOS","v":{"v":0.7454545454545455,"d":"75%"}}]
[null,{"$f":"B5","v":0.7454545454545455}]
[null,"INGRESOS MENSUALES NETOS","GASTOS MENSUALES NETOS","SALDO"]
[null,{"$f":"C10","v":{"v":2750,"d":"2,750 €"}},{"$f":"'GASTOS MENSUALES NETOS'!C4+'GASTOS TRIMESTRALES'!D4","v":{"v":2050,"d":"2,050 €"}},{"$f":"INGRESOS_MENSUALES_NETOS-GASTOS_MENSUALES_NETOS","v":{"v":700,"d":"700 €"}}]
[null,"Meses del trimestre",4]
[null,"INGRESOS MENSUALES",{"$f":"SUM(IngresosMensuales[CANTIDAD])","v":{"v":2750,"d":"2,750 €"}}]
[null,"ELEMENTO","CANTIDAD"]
[null,"Ingresos fijos",{"v":1500,"d":"1,500 €"}]
[null,"Ayuda financiera",{"v":500,"d":"500 €"}]
[null,"Préstamos",{"v":500,"d":"500 €"}]
[null,"Otros ingresos",{"v":250,"d":"250 €"}]

{"sheet":"GASTOS MENSUALES NETOS","index":3,"n_rows":15,"n_cols":3,"rows_kept":15}
[null,{"$f":"Facultad","v":"FACULTAD"}]
[null,"SEGUIMIENTO DE PRESUPUESTO"]
[null,"Gastos mensuales",{"$f":"Año","v":"AÑO"}]
[null,"GASTOS MENSUALES",{"$f":"SUM(GastosMensuales[CANTIDAD])","v":{"v":1675,"d":"1,675 €"}}]
[null,"ELEMENTO","CANTIDAD"]
[null,"Alquiler",{"v":300,"d":"300 €"}]
[null,"Servicios públicos",{"v":50,"d":"50 €"}]
[null,"Teléfono móvil",{"v":75,"d":"75 €"}]
[null,"Comestibles",{"v":250,"d":"250 €"}]
[null,"Gastos del coche",{"v":50,"d":"50 €"}]
[null,"Préstamos para estudiantes",{"v":500,"d":"500 €"}]
[null,"Tarjetas de crédito",{"v":275,"d":"275 €"}]
[null,"Seguro",{"v":125,"d":"125 €"}]
[null,"Entretenimiento",{"v":50,"d":"50 €"}]
[null,"Varios",{"v":0,"d":"0 €"}]

{"sheet":"GASTOS TRIMESTRALES","index":4,"n_rows":11,"n_cols":4,"rows_kept":11}
[null,{"$f":"Facultad","v":"FACULTAD"}]
[null,"SEGUIMIENTO DE PRESUPUESTO"]
[null,"Gastos trimestrales",{"$f":"Año","v":"AÑO"}]
[null,"GASTOS TRIMESTRALES (total/por mes)",{"$f":"SUM(Gastos_trimestrales[CANTIDAD])","v":{"v":1500,"d":"1,500 €"}},{"$f":"SUM(Gastos_trimestrales[POR MES])","v":{"v":375,"d":"375 €"}}]
[null,"ELEMENTO","CANTIDAD","POR MES"]
[null,"Matrícula",{"v":750,"d":"750 €"},{"$f":"Gastos_trimestrales[[#This Row],[CANTIDAD]]/Months_in_term","v":{"v":187.5,"d":"188 €"}}]
[null,"Gastos de laboratorio",{"v":250,"d":"250 €"},{"$f":"Gastos_trimestrales[[#This Row],[CANTIDAD]]/Months_in_term","v":{"v":62.5,"d":"63 €"}}]
[null,"Libros",{"v":500,"d":"500 €"},{"$f":"Gastos_trimestrales[[#This Row],[CANTIDAD]]/Months_in_term","v":{"v":125,"d":"125 €"}}]
[null,"Depósitos",{"v":0,"d":"0 €"},{"$f":"Gastos_trimestrales[[#This Row],[CANTIDAD]]/Months_in_term","v":{"v":0,"d":"0 €"}}]
[null,"Transporte",{"v":0,"d":"0 €"},{"$f":"Gastos_trimestrales[[#This Row],[CANTIDAD]]/Months_in_term","v":{"v":0,"d":"0 €"}}]
[null,"Otros gastos",{"v":0,"d":"0 €"},{"$f":"Gastos_trimestrales[[#This Row],[CANTIDAD]]/Months_in_term","v":{"v":0,"d":"0 €"}}]

{"sheet":"LIBROS","index":5,"n_rows":7,"n_cols":7,"rows_kept":7}
[null,{"$f":"Facultad","v":"FACULTAD"}]
[null,"SEGUIMIENTO DE LIBROS"]
[null,"Lista de libros"]
[null,"TÍTULO","AUTOR","CURSO","¿DÓNDE SE PUEDE COMPRAR?","ISBN","NOTAS"]
[null,"Título del libro","Autor","Curso","Ubicación","Número"]
[null,"Título del libro","Autor","Curso","Ubicación","Número"]
[null,"Título del libro","Autor","Curso","Ubicación","Número"]